bitfinex/quotes_BTCUSD_20250617
["timestamp","ask_amount","ask_price","bid_price","bid_amount"]
[1750189230217,1.38040967,105060.0,105050.0,0.00014317]
[1750189230431,1.59088967,105060.0,105050.0,0.00014317]
[1750189232044,1.56178967,105060.0,105050.0,0.00014317]
[1750189234289,1.59228967,105060.0,105050.0,0.00014317]
[1750189234497,1.59224967,105060.0,105050.0,0.00014317]
[1750189234766,1.68839889,105060.0,105050.0,0.00014317]
[1750189235867,1.59224967,105060.0,105050.0,0.00014317]
[1750189238961,1.82088967,105060.0,105050.0,0.00014317]
[1750189241552,1.79038967,105060.0,105050.0,0.00014317]
[1750189242927,1.60844967,105060.0,105050.0,0.00014317]
[1750189243167,1.57994967,105060.0,105050.0,0.00014317]
[1750189243427,1.76074967,105060.0,105050.0,0.00014317]
[1750189244621,1.55034967,105060.0,105050.0,0.00014317]
[1750189244839,1.04130838,105060.0,105050.0,0.00014317]
[1750189245054,1.59616882,105060.0,105050.0,0.00014317]
[1750189245501,1.59616882,105060.0,105050.0,0.1905287]
[1750189245720,1.38580882,105060.0,105050.0,0.1905287]
[1750189245932,1.08712753,105060.0,105050.0,0.2496287]
[1750189246585,0.87676753,105060.0,105050.0,0.2496287]
[1750189246806,1.08712753,105060.0,105050.0,0.2496287]
[1750189247038,1.59616882,105060.0,105050.0,0.05924317]
[1750189247249,1.69231804,105060.0,105050.0,0.05924317]
[1750189248105,1.69231804,105060.0,105050.0,0.02864317]
[1750189249010,1.59616882,105060.0,105050.0,0.00014317]
[1750189249245,1.14672753,105060.0,105050.0,0.00014317]
[1750189249467,1.59616882,105060.0,105050.0,0.00014317]
[1750189251233,1.08712753,105060.0,105050.0,0.00014317]
[1750189251448,1.59616882,105060.0,105050.0,0.00014317]
[1750189252302,1.59608882,105060.0,105050.0,0.00014317]
[1750189252535,1.59608882,105060.0,105050.0,0.02944317]
[1750189253573,1.59608882,105060.0,105050.0,0.2198287]
[1750189253705,1.59608882,105060.0,105050.0,0.02944317]
[1750189253923,1.59608882,105060.0,105050.0,0.00014317]
[1750189254129,1.69223804,105060.0,105050.0,0.00014317]
[1750189255415,1.75123804,105060.0,105050.0,0.00014317]
[1750189256053,1.76577889,105060.0,105050.0,0.00014317]
[1750189256285,1.91577889,105060.0,105050.0,0.00014317]
[1750189256482,1.92246693,105060.0,105050.0,0.00014317]
[1750189257417,1.82631771,105060.0,105050.0,0.00014317]
[1750189258895,1.82631911,105060.0,105050.0,0.00014317]
[1750189259333,1.82623911,105060.0,105050.0,0.00014317]
[1750189262449,1.82623876,105060.0,105050.0,0.00014317]
[1750189263745,1.87623855,105060.0,105050.0,0.00014317]
[1750189263973,2.41377071,105060.0,105050.0,0.00014317]
[1750189264184,2.00087864,105060.0,105050.0,0.00014317]
[1750189264831,2.05087864,105060.0,105050.0,0.00014317]
[1750189265043,2.04887864,105060.0,105050.0,0.00014317]
[1750189265274,0.54946331,105030.0,105020.0,0.0569]
[1750189265456,1.36470636,105030.0,105020.0,0.05699245]
[1750189266403,1.39225005,105030.0,105020.0,9.245e-05]
[1750189266607,1.39225005,105030.0,105020.0,0.00109245]
[1750189268147,1.39225005,105030.0,105020.0,9.245e-05]
[1750189268837,1.39225005,105030.0,105020.0,0.00309245]
[1750189269300,1.5871909,105030.0,105020.0,0.00309245]
[1750189269510,1.54964721,105030.0,105020.0,0.00309245]
[1750189269722,1.57904721,105030.0,105020.0,0.00309245]
[1750189270385,1.65596659,105030.0,105020.0,0.00309245]
[1750189270596,1.63572568,105030.0,105020.0,0.00309245]
[1750189270806,1.7318749,105030.0,105020.0,0.00309245]
[1750189271022,1.83733205,105030.0,105020.0,0.00309245]
[1750189271446,1.83733205,105030.0,105020.0,9.245e-05]
[1750189271667,1.80879428,105030.0,105020.0,0.00309245]
[1750189271877,1.83733205,105030.0,105020.0,9.245e-05]
[1750189272087,0.69950321,105010.0,105000.0,0.21]
[1750189272291,1.21360178,105010.0,105000.0,0.21047293]
[1750189272541,1.33364711,105010.0,105000.0,0.21047293]
[1750189272757,1.31910626,105010.0,105000.0,0.26937293]
[1750189273413,1.31910626,105010.0,105000.0,0.27237293]
[1750189273630,1.32010626,105010.0,105000.0,0.21347293]
[1750189273846,0.81106497,105010.0,105000.0,0.21347293]
[1750189274071,1.46139633,105010.0,105000.0,0.21347293]
[1750189274329,1.74689851,105010.0,105000.0,0.21329688]
[1750189276482,0.91326348,105010.0,105000.0,0.24239688]
[1750189276701,1.12314348,105010.0,105000.0,0.27299688]
[1750189276919,0.91364027,105010.0,105000.0,0.27299688]
[1750189277132,1.63218477,105010.0,105000.0,0.24389688]
[1750189277348,1.64672562,105010.0,105000.0,0.21329688]
[1750189277565,1.80457484,105010.0,105000.0,0.21329688]
[1750189277998,2.31361613,105010.0,105000.0,0.21329688]
[1750189278437,1.80457484,105010.0,105000.0,0.21329688]
[1750189278872,1.85357484,105010.0,105000.0,0.21329688]
[1750189279092,1.85557484,105010.0,105000.0,0.21029688]
[1750189279322,2.41461613,105010.0,105000.0,0.21029688]
[1750189279583,2.41461613,105010.0,104960.0,0.23483159]
[1750189279584,0.54958303,104970.0,104960.0,0.0726509]
[1750189279826,0.54958303,104970.0,104930.0,0.00022418]
[1750189279827,0.54964296,104940.0,104930.0,0.00022418]
[1750189280055,1.35527721,104940.0,104930.0,0.03730458]
[1750189280267,1.35527721,104940.0,104930.0,0.00022418]
[1750189280478,1.35527721,104940.0,104930.0,0.00900453]
[1750189280667,0.85563893,104940.0,104930.0,0.00900453]
[1750189280924,1.36468022,104940.0,104930.0,0.03730453]
[1750189281149,1.36515271,104940.0,104930.0,0.00222418]
[1750189281789,0.85611142,104940.0,104930.0,0.06082418]
[1750189281998,0.85611142,104940.0,104930.0,0.26095759]
[1750189282213,0.85611142,104940.0,104930.0,0.06082418]
[1750189282834,0.64623142,104940.0,104930.0,0.06082418]
[1750189283045,0.85607142,104940.0,104930.0,0.06282418]
[1750189283261,1.25142193,104940.0,104930.0,0.06282418]
[1750189283474,1.46130193,104940.0,104930.0,0.00422418]
[1750189284538,1.48981748,104940.0,104930.0,0.00422418]
[1750189285039,0.88462697,104940.0,104930.0,0.00422418]
[1750189285290,0.88462697,104940.0,104930.0,0.06302418]
[1750189285533,0.88462697,104940.0,104930.0,0.25362743]
[1750189285733,0.88462697,104940.0,104930.0,0.06302418]
[1750189286271,0.67474697,104940.0,104930.0,0.06302418]
[1750189286492,0.88462697,104940.0,104930.0,0.06302418]
[1750189286731,0.67474697,104940.0,104930.0,0.26315759]
[1750189286973,0.88462697,104940.0,104930.0,0.25362743]
[1750189287187,0.90368502,104940.0,104930.0,0.2726872]
[1750189287412,0.74893327,104940.0,104930.0,0.2726873]
[1750189287623,0.72258809,104940.0,104930.0,0.29970986]
[1750189287846,0.73211725,104940.0,104930.0,0.28221691]
[1750189288067,0.93859281,104940.0,104930.0,0.29017052]
[1750189288285,0.90364502,104940.0,104930.0,0.29016867]
[1750189288503,0.90364502,104940.0,104930.0,0.2726873]
[1750189288722,0.90364502,104940.0,104930.0,0.282217]
[1750189288953,0.90364502,104940.0,104930.0,0.28064209]
[1750189289177,0.91317427,104940.0,104930.0,0.282217]
[1750189289391,1.00932349,104940.0,104930.0,0.29017199]
[1750189289622,0.80920915,104940.0,104930.0,0.3092313]
[1750189289842,0.79967999,104940.0,104930.0,0.30923148]
[1750189290066,0.79967999,104940.0,104930.0,0.31876063]
[1750189290067,0.48671425,104940.0,104930.0,0.31876063]
[1750189290280,0.09607249,104940.0,104930.0,0.82780192]
[1750189290498,0.26031249,104940.0,104930.0,0.31876063]
[1750189290737,0.05047249,104940.0,104930.0,0.31876063]
[1750189290955,0.21471249,104940.0,104930.0,0.31876063]
[1750189291176,0.30554966,104940.0,104930.0,0.31876063]
[1750189291393,0.28649234,104940.0,104930.0,0.31876063]
[1750189291604,0.22424101,104940.0,104930.0,0.31876063]
[1750189291822,0.23376972,104940.0,104930.0,0.31876063]
[1750189292787,0.06000092,104940.0,104930.0,0.31876063]
[1750189293000,0.06952963,104940.0,104930.0,0.31876063]
[1750189293220,0.06952953,104940.0,104930.0,0.31876063]
[1750189293437,0.06000092,104940.0,104930.0,0.30127594]
[1750189293657,0.05047249,104940.0,104930.0,0.31876473]
[1750189294111,0.05047249,104940.0,104930.0,0.82780602]
[1750189294557,0.05047249,104940.0,104930.0,0.31876473]
[1750189294775,0.10126127,104940.0,104930.0,0.31876473]
[1750189295213,0.05047249,104940.0,104930.0,0.31876473]
[1750189295436,0.06000092,104940.0,104930.0,0.31876473]
[1750189295657,0.05047249,104940.0,104930.0,0.31876473]
[1750189296990,0.05047249,104940.0,104930.0,0.30127594]
[1750189300319,0.05047249,104940.0,104930.0,0.90655899]
[1750189301224,0.05047249,104940.0,104930.0,0.93466469]
[1750189301443,0.05047249,104940.0,104930.0,0.93266469]
[1750189301648,0.05047249,104940.0,104930.0,0.93566469]
[1750189302072,0.05047249,104940.0,104930.0,0.93866469]
[1750189302293,0.05047249,104940.0,104930.0,0.5937834]
[1750189302477,0.05047249,104940.0,104930.0,0.5656777]
[1750189302729,0.05047249,104940.0,104930.0,0.60040979]
[1750189302940,0.05047249,104940.0,104930.0,0.33500803]
[1750189303148,0.05047249,104940.0,104930.0,0.47106233]
[1750189303357,0.05047249,104940.0,104930.0,0.47506233]
[1750189303580,0.05047249,104940.0,104930.0,0.47106233]
[1750189304021,0.05047249,104940.0,104930.0,0.48306233]
[1750189304227,0.05047249,104940.0,104930.0,0.31090233]
[1750189304439,0.05047249,104940.0,104930.0,0.47602233]
[1750189304891,0.05047249,104940.0,104930.0,0.50712803]
[1750189305319,0.05047249,104940.0,104930.0,0.50412803]
[1750189306148,0.05047249,104940.0,104930.0,0.50312803]
[1750189306453,0.05147249,104940.0,104930.0,0.51212803]
[1750189306658,0.05147249,104940.0,104930.0,0.34800803]
[1750189306866,0.05147249,104940.0,104930.0,0.51212803]
[1750189307083,0.05147249,104940.0,104930.0,0.34800803]
[1750189307297,0.06716998,104940.0,104930.0,0.34800803]
[1750189307511,0.06716998,104940.0,104930.0,0.51208803]
[1750189308335,0.05147249,104940.0,104930.0,0.51208803]
[1750189308771,0.05147249,104940.0,104930.0,0.54936628]
[1750189309862,0.05147249,104940.0,104930.0,1.12654363]
[1750189310316,0.05147249,104940.0,104930.0,1.18246101]
[1750189310984,0.05147249,104940.0,104930.0,1.12654363]
[1750189311224,0.05147249,104940.0,104930.0,1.18246101]
[1750189311901,0.05147249,104940.0,104930.0,1.14518276]
[1750189312120,0.05147249,104940.0,104930.0,1.08926538]
[1750189312338,0.05147249,104940.0,104930.0,1.50382188]
[1750189312602,0.05118659,104940.0,104930.0,1.56376273]
[1750189312818,0.02268659,104940.0,104930.0,1.48920623]
[1750189313035,0.02268659,104940.0,104930.0,1.56428385]
[1750189313896,0.03268659,104940.0,104930.0,1.56428385]
[1750189316236,0.03268659,104940.0,104930.0,1.5927156]
[1750189320164,0.03268659,104940.0,104930.0,1.6713326]
[1750189320405,0.03268659,104940.0,104930.0,1.7213326]
[1750189320615,0.07691938,104970.0,104960.0,0.78897128]
[1750189320821,0.07691938,104970.0,104960.0,1.07731601]
[1750189321053,0.07691938,104970.0,104960.0,1.01423784]
[1750189321300,0.07691938,104970.0,104960.0,1.39453403]
[1750189322844,0.07691938,104970.0,104960.0,1.39553403]
[1750189323100,0.07691938,104970.0,104960.0,1.1454492]
[1750189323531,0.07691938,104990.0,104980.0,0.25078824]
[1750189323739,0.07691938,104990.0,104980.0,0.85753754]
[1750189323950,0.07691938,104990.0,104980.0,1.02141754]
[1750189324155,0.07691938,104990.0,104980.0,0.51091]
[1750189324802,0.07691938,104990.0,104980.0,0.51095769]
[1750189325028,0.64780971,105010.0,105000.0,0.19999981]
[1750189325266,0.63828727,105010.0,105000.0,0.19999999]
[1750189325498,0.03972426,104990.0,104980.0,0.20208505]
[1750189325730,0.04924825,104990.0,104980.0,0.21161022]
[1750189325947,0.04924789,104990.0,104980.0,0.21161022]
[1750189326160,0.07782085,104990.0,104980.0,0.21161022]
[1750189326408,0.06829632,104990.0,104980.0,0.20961022]
[1750189326623,0.05877197,104990.0,104980.0,0.20961022]
[1750189326850,0.06829632,104990.0,104980.0,0.21061022]
[1750189327289,0.07782085,104990.0,104980.0,0.21061022]
[1750189327502,0.06829632,104990.0,104980.0,0.21061022]
[1750189327942,0.06829623,104990.0,104980.0,0.21061022]
[1750189328152,0.09809623,104990.0,104980.0,0.21061022]
[1750189328341,0.10762067,104990.0,104980.0,0.21061022]
[1750189328568,0.10762139,104990.0,104980.0,0.21061022]
[1750189328720,0.09809677,104990.0,104980.0,0.21061022]
[1750189328930,0.1076213,104990.0,104980.0,0.21061022]
[1750189329369,0.29811626,104990.0,104980.0,0.22013584]
[1750189329580,0.10762193,104990.0,104980.0,0.22966082]
[1750189330157,0.09809731,104990.0,104980.0,0.22966082]
[1750189330369,0.08857287,104990.0,104980.0,0.22966082]
[1750189330787,0.28859182,104990.0,104980.0,0.22013584]
[1750189330944,0.08857287,104990.0,104980.0,0.22966082]
[1750189331151,0.08857278,104990.0,104980.0,0.22966082]
[1750189331351,0.09809731,104990.0,104980.0,0.22966082]
[1750189332320,0.10762193,104990.0,104980.0,0.22966082]
[1750189332533,0.29811626,104990.0,104980.0,0.22966082]
[1750189332739,0.10762193,104990.0,104980.0,0.22966082]
[1750189333173,0.29811689,104990.0,104980.0,0.22013584]
[1750189333353,0.0790487,104990.0,104980.0,0.22966082]
[1750189333564,0.03932399,104990.0,104980.0,0.22966082]
[1750189334247,0.08114825,104990.0,104980.0,0.22966082]
[1750189334463,0.07162399,104990.0,104980.0,0.22966082]
[1750189334673,0.0716239,104990.0,104980.0,0.22966082]
[1750189334883,0.08114798,104990.0,104980.0,0.22966082]
[1750189335089,0.08114789,104990.0,104980.0,0.22966082]
[1750189335323,0.07162399,104990.0,104980.0,0.22966082]
[1750189335534,0.0298,104990.0,104980.0,0.22966082]
[1750189335747,0.0393239,104990.0,104980.0,0.22966082]
[1750189335963,0.0702239,104990.0,104980.0,0.22966082]
[1750189336185,0.0607,104990.0,104980.0,0.22966082]
[1750189336406,0.0298,104990.0,104980.0,0.22966082]
[1750189336642,0.03932399,104990.0,104980.0,0.22966082]
[1750189336851,0.0298,104990.0,104980.0,0.22966082]
[1750189339735,0.46032308,105000.0,104990.0,0.23811608]
[1750189339952,0.4508,105000.0,104990.0,0.23811608]
[1750189340184,0.4199,105000.0,104990.0,0.23811608]
[1750189341570,0.55188,105000.0,104990.0,0.23811608]
[1750189341806,0.003,105000.0,104990.0,0.23811608]
[1750189342015,0.16668,105000.0,104990.0,0.26891608]
[1750189342229,0.26927948,105000.0,104990.0,0.21906783]
[1750189342503,0.04182299,105000.0,104990.0,0.22859191]
[1750189342712,0.19598,105000.0,104990.0,0.22859191]
[1750189344669,0.21502643,105000.0,104990.0,0.22859191]
[1750189344919,0.25070308,105000.0,104990.0,0.22859191]
[1750189345143,0.26022625,105000.0,104990.0,0.22859191]
[1750189345365,0.26974951,105000.0,104990.0,0.22859191]
[1750189346341,0.27927295,105000.0,104990.0,0.22859191]
[1750189346773,0.50734657,105000.0,104980.0,0.25621912]
[1750189347000,0.88141366,105000.0,104990.0,0.19049433]
[1750189347448,0.11882344,105000.0,104990.0,0.20001886]
[1750189347661,0.13787023,105000.0,104990.0,0.21906729]
[1750189347880,0.12534661,105000.0,104990.0,0.21906729]
[1750189348113,0.12834661,105000.0,104990.0,0.21906729]
[1750189348338,0.13587023,105000.0,104990.0,0.21906729]
[1750189348551,0.33487013,105000.0,104990.0,0.20954321]
[1750189348789,0.33487013,105000.0,104990.0,0.20001886]
[1750189348790,0.32734696,105000.0,104990.0,0.20001886]
[1750189349001,0.32834696,105000.0,104990.0,0.20001886]
[1750189349211,0.73678072,105000.0,104990.0,0.20001886]
[1750189349433,0.90038072,105000.0,104990.0,0.2095433]
[1750189349646,0.90038072,105000.0,104990.0,0.21906756]
[1750189349860,0.89038072,105000.0,104990.0,0.22859173]
[1750189350299,0.48194696,105000.0,104990.0,0.22859173]
[1750189350509,0.48194696,105000.0,104990.0,0.21906756]
[1750189350773,0.48194696,105000.0,104990.0,0.22859173]
[1750189351000,0.48194696,105000.0,104990.0,0.21906765]
[1750189351207,0.48194696,105000.0,104990.0,0.22859191]
[1750189351631,0.48194696,105000.0,104990.0,0.23811608]
[1750189351884,0.49147076,105000.0,104990.0,0.22859191]
[1750189352151,0.48194732,105000.0,104990.0,0.21906765]
[1750189352345,0.29147113,105000.0,104990.0,0.21906765]
[1750189352551,0.89038108,105000.0,104990.0,0.21906765]
[1750189353205,0.88085746,105000.0,104990.0,0.21906765]
[1750189353867,0.2730433,104990.0,104980.0,0.02818269]
[1750189354111,1.11771882,104990.0,104980.0,4.769e-05]
[1750189355061,1.11771882,104990.0,104980.0,0.00104769]
[1750189355266,1.21386804,104990.0,104980.0,0.00104769]
[1750189356982,1.22840889,104990.0,104980.0,0.00104769]
[1750189357308,1.31201882,104990.0,104980.0,0.00104769]
[1750189357712,1.30532827,104990.0,104980.0,0.00104769]
[1750189357925,1.30532827,104990.0,104980.0,4.769e-05]
[1750189358198,1.30732827,104990.0,104980.0,4.769e-05]
[1750189358423,1.31132827,104990.0,104980.0,4.769e-05]
[1750189358841,1.30932827,104990.0,104980.0,4.769e-05]
[1750189359072,1.23240889,104990.0,104980.0,4.769e-05]
[1750189359704,1.22840889,104990.0,104980.0,4.769e-05]
[1750189359912,1.44296889,104990.0,104980.0,4.769e-05]
[1750189360123,1.44596889,104990.0,104980.0,4.769e-05]
[1750189360370,0.71828506,104990.0,104980.0,4.769e-05]
[1750189360578,0.71828506,104990.0,104980.0,0.2191363]
[1750189360579,0.73202506,104990.0,104980.0,0.2191363]
[1750189360876,0.12429073,104990.0,104980.0,0.2191363]
[1750189361079,0.24613314,104990.0,104980.0,0.25826128]
[1750189361294,0.37809776,104990.0,104980.0,0.25826128]
[1750189361508,0.77162792,104990.0,104980.0,0.22968569]
[1750189361727,1.25916193,104990.0,104980.0,4.769e-05]
[1750189361937,1.29066193,104990.0,104980.0,4.769e-05]
[1750189362172,1.29066193,104990.0,104980.0,0.20008578]
[1750189362384,1.29062193,104990.0,104980.0,4.769e-05]
[1750189363542,1.29062193,104990.0,104980.0,0.19056016]
[1750189363747,1.29062193,104990.0,104980.0,4.769e-05]
[1750189364619,1.41726369,104990.0,104980.0,4.769e-05]
[1750189364829,1.00882993,104990.0,104980.0,4.769e-05]
[1750189365042,1.41726369,104990.0,104980.0,4.769e-05]
[1750189365251,1.00882993,104990.0,104980.0,4.769e-05]
[1750189365477,1.41726369,104990.0,104980.0,0.19056016]
[1750189365683,1.40773907,104990.0,104980.0,0.19056016]
[1750189365944,1.40773907,104990.0,104980.0,4.769e-05]
[1750189367677,1.29071438,104990.0,104980.0,0.20961113]
[1750189367914,1.29071438,104990.0,104980.0,0.2191363]
[1750189367915,1.0877683,104990.0,104980.0,0.2191363]
[1750189368129,1.09729301,104990.0,104980.0,0.25866137]
[1750189368346,0.8792483,104990.0,104980.0,0.26818635]
[1750189368554,0.45176575,104990.0,104980.0,0.26818635]
[1750189368769,1.08772794,104990.0,104980.0,0.26818635]
[1750189368981,1.27822281,104990.0,104980.0,0.20008578]
[1750189369191,1.28977438,104990.0,104980.0,0.20961131]
[1750189369413,1.28024985,104990.0,104980.0,0.20008578]
[1750189369834,0.87181609,104990.0,104980.0,0.20961131]
[1750189370045,1.28024985,104990.0,104980.0,0.20961131]
[1750189370499,1.28024985,104990.0,104980.0,0.20961122]
[1750189370699,1.28024985,104990.0,104980.0,0.21913657]
[1750189370923,1.07820377,104990.0,104980.0,0.26818681]
[1750189371134,1.29723169,104990.0,104980.0,0.268187]
[1750189371334,1.09721265,104990.0,104980.0,0.26818636]
[1750189371552,1.10673727,104990.0,104980.0,0.26818645]
[1750189371785,0.68877889,104990.0,104980.0,0.26818599]
[1750189372237,0.68877889,104990.0,104980.0,0.24913594]
[1750189372438,0.45176575,104990.0,104980.0,0.25866092]
[1750189372649,0.59253695,104990.0,104980.0,0.25866092]
[1750189373153,0.58301242,104990.0,104980.0,0.25866092]
[1750189373367,0.7925559,104990.0,104980.0,0.24913594]
[1750189373605,0.59253686,104990.0,104980.0,0.25866092]
[1750189373810,0.97239775,104990.0,104980.0,0.25866092]
[1750189374019,0.98192183,104990.0,104980.0,0.25866092]
[1750189374236,0.77350666,104990.0,104980.0,0.25866092]
[1750189374453,0.79255581,104990.0,104980.0,0.25866092]
[1750189374664,0.78303182,104990.0,104980.0,0.24913594]
[1750189375076,0.42913731,104990.0,104980.0,0.25866092]
[1750189375279,0.59249731,104990.0,104980.0,0.25866092]
[1750189376094,0.78299164,104990.0,104980.0,0.24913594]
[1750189376516,0.60202193,104990.0,104980.0,0.25866101]
[1750189376742,0.60202193,104990.0,104980.0,0.26818599]
[1750189376985,0.59249731,104990.0,104980.0,0.26818599]
[1750189377223,0.79251635,104990.0,104980.0,0.26818599]
[1750189377459,0.78299164,104990.0,104980.0,0.26818599]
[1750189377703,0.59249731,104990.0,104980.0,0.26818599]
[1750189377940,0.58297278,104990.0,104980.0,0.26818599]
[1750189378415,0.57344843,104990.0,104980.0,0.26818599]
[1750189378898,0.36504843,104990.0,104980.0,0.26818599]
[1750189379132,0.23344834,104990.0,104980.0,0.26818599]
[1750189379379,0.24297287,104990.0,104980.0,0.26818599]
[1750189379674,0.24293287,104990.0,104980.0,0.26818599]
[1750189379927,0.24293269,104990.0,104980.0,0.26818599]
[1750189380187,0.22388408,104990.0,104980.0,0.29938599]
[1750189380439,0.21436,104990.0,104980.0,0.29938599]
[1750189380678,0.23340825,104990.0,104980.0,0.29938599]
[1750189380895,0.22388399,104990.0,104980.0,0.29938599]
[1750189381125,0.21436,104990.0,104980.0,0.29938599]
[1750189381355,0.25245713,104990.0,104980.0,0.26818599]
[1750189381596,0.2429326,104990.0,104980.0,0.26818599]
[1750189382017,0.25245713,104990.0,104980.0,0.26818599]
[1750189382927,0.45247617,104990.0,104980.0,0.26818599]
[1750189383808,0.86090993,104990.0,104980.0,0.2491362]
[1750189384030,0.66089161,104990.0,104980.0,0.25866118]
[1750189384247,0.6513669,104990.0,104980.0,0.25866118]
[1750189384463,0.66089152,104990.0,104980.0,0.25866118]
[1750189384692,0.85138585,104990.0,104980.0,0.2491362]
[1750189384907,0.86091056,104990.0,104980.0,0.2491362]
[1750189385119,0.24293314,104990.0,104980.0,0.25866118]
[1750189385327,0.6513669,104990.0,104980.0,0.25866118]
[1750189385544,0.86091056,104990.0,104980.0,0.25866118]
[1750189385753,0.6513669,104990.0,104980.0,0.25866118]
[1750189385964,0.64184237,104990.0,104980.0,0.25866118]
[1750189386208,0.65136627,104990.0,104980.0,0.25866118]
[1750189386414,0.23340807,104990.0,104980.0,0.25866118]
[1750189386621,0.24293251,104990.0,104980.0,0.25866118]
[1750189386836,0.2238839,104990.0,104980.0,0.25866118]
[1750189387050,0.23340798,104990.0,104980.0,0.25866118]
[1750189387563,0.2238839,104990.0,104980.0,0.25866118]
[1750189387791,0.21436,104990.0,104980.0,0.25866118]
[1750189388025,0.006,104990.0,104980.0,0.63186118]
[1750189388277,0.006,104990.0,104980.0,1.04029494]
[1750189388730,0.006,104990.0,104980.0,0.70029494]
[1750189388962,0.004,104990.0,104980.0,0.70029494]
[1750189389437,0.23660987,105000.0,104990.0,0.2425433]
[1750189389647,0.24613349,105000.0,104990.0,0.25206738]
[1750189389863,0.22708643,105000.0,104990.0,0.25206738]
[1750189390298,0.23660996,105000.0,104990.0,0.25206738]
[1750189390721,0.21756308,105000.0,104990.0,0.25206738]
[1750189390937,0.22708634,105000.0,104990.0,0.25206738]
[1750189391177,0.43720832,105010.0,105000.0,0.20952316]
[1750189391401,1.24410013,105010.0,105000.0,0.19999981]
[1750189391614,1.24410013,105010.0,105000.0,0.19047619]
[1750189391827,1.20667938,105010.0,105000.0,0.20952352]
[1750189392044,1.00820164,105010.0,105000.0,0.21904696]
[1750189392254,1.22572454,105010.0,105000.0,0.22857031]
[1750189392476,1.01622078,105010.0,105000.0,0.23809357]
[1750189392693,1.03526631,105010.0,105000.0,0.22856977]
[1750189392913,1.01922078,105010.0,105000.0,0.23809294]
[1750189393132,1.21920173,105010.0,105000.0,0.20952316]
[1750189393334,1.21920173,105010.0,105000.0,0.2095237]
[1750189393758,1.20967938,105010.0,105000.0,0.2095237]
[1750189394403,1.20967938,105010.0,105000.0,0.21904723]
[1750189394610,1.20967938,105010.0,105000.0,0.22857067]
[1750189394822,1.20967938,105010.0,105000.0,0.21904732]
[1750189395522,1.20967938,105010.0,105000.0,0.2095237]
[1750189395961,0.80124562,105010.0,105000.0,0.21904732]
[1750189396180,1.20967938,105010.0,105000.0,0.22857085]
[1750189396609,1.20967938,105010.0,105000.0,0.2095237]
[1750189396816,1.20967938,105010.0,105000.0,0.21904723]
[1750189397245,1.00167938,105010.0,105000.0,0.2095237]
[1750189397460,1.20011675,105010.0,105000.0,0.19047619]
[1750189397919,1.20011675,105010.0,105000.0,0.19999999]
[1750189398765,1.19059385,105010.0,105000.0,0.19047619]
[1750189399223,1.19059385,105010.0,105000.0,0.20952352]
[1750189399432,1.20011657,105010.0,105000.0,0.20952361]
[1750189399653,1.20011657,105010.0,105000.0,0.19047619]
[1750189400744,1.20011657,105010.0,105000.0,0.19999981]
[1750189400954,1.20011657,105010.0,105000.0,0.20952361]
[1750189401171,1.20011657,105010.0,105000.0,0.2095237]
[1750189401381,1.20963901,105010.0,105000.0,0.21904714]
[1750189401593,1.01918096,105010.0,105000.0,0.22857049]
[1750189401861,1.01918096,105010.0,105000.0,0.23809375]
[1750189402069,1.01918096,105010.0,105000.0,0.22856995]
[1750189402274,0.47543797,105010.0,105000.0,0.26889312]
[1750189402497,0.65752276,105010.0,105000.0,0.26889312]
[1750189402723,0.4210758,105010.0,105000.0,0.26889312]
[1750189402932,0.04784,105010.0,105000.0,0.30059312]
[1750189405061,0.22040226,105010.0,105000.0,0.26889312]
[1750189405495,0.23944714,105010.0,105000.0,0.26889312]
[1750189405703,0.86863969,105010.0,105000.0,0.19047619]
[1750189405925,0.69925874,105010.0,105000.0,0.19999999]
[1750189406135,0.88971624,105010.0,105000.0,0.19999999]
[1750189406346,0.90876158,105010.0,105000.0,0.19999999]
[1750189406571,0.99548126,105010.0,105000.0,0.19999999]
[1750189406781,0.99548126,105010.0,105000.0,0.20952361]
[1750189406989,1.00500416,105010.0,105000.0,0.2095237]
[1750189407175,1.00500416,105010.0,105000.0,0.19047619]
[1750189407385,0.99548181,105010.0,105000.0,0.19047619]
[1750189407604,0.99548181,105010.0,105000.0,0.1999999]
[1750189407814,0.96488181,105010.0,105000.0,0.20952343]
[1750189408248,0.96488181,105010.0,105000.0,0.20952352]
[1750189408466,0.96488181,105010.0,105000.0,0.1999999]
[1750189408675,0.96488181,105010.0,105000.0,0.2095237]
[1750189408886,0.96488181,105010.0,105000.0,0.19999999]
[1750189409105,0.96488181,105010.0,105000.0,0.2095237]
[1750189409373,0.77442303,105010.0,105000.0,0.22857067]
[1750189409590,0.97432389,105010.0,105000.0,0.2095237]
[1750189409802,0.97432453,105010.0,105000.0,0.19999999]
[1750189410030,0.97432453,105010.0,105000.0,0.2095237]
[1750189410246,0.97432453,105010.0,105000.0,0.19047619]
[1750189410504,0.26146977,105000.0,104980.0,0.25126016]
[1750189410721,0.63286672,104990.0,104980.0,0.20961077]
[1750189410937,0.63286636,104990.0,104980.0,0.21913575]
[1750189411150,0.62334201,104990.0,104980.0,0.21913575]
[1750189411364,0.83288531,104990.0,104980.0,0.19056016]
[1750189411589,0.83288531,104990.0,104980.0,4.769e-05]
[1750189411590,1.36890369,104990.0,104980.0,4.769e-05]
[1750189411804,1.54173952,104990.0,104980.0,4.769e-05]
[1750189412019,1.55958538,104990.0,104980.0,0.00104769]
[1750189412442,1.54173952,104990.0,104980.0,0.00304769]
[1750189412875,1.54173952,104990.0,104980.0,0.00104769]
[1750189413102,1.54573952,104990.0,104980.0,4.769e-05]
[1750189413297,1.54773952,104990.0,104980.0,4.769e-05]
[1750189413734,1.13930576,104990.0,104980.0,4.769e-05]
[1750189413975,1.54773952,104990.0,104980.0,4.769e-05]
[1750189414479,1.54573952,104990.0,104980.0,4.769e-05]
[1750189414688,1.52490369,104990.0,104980.0,4.769e-05]
[1750189415773,1.54771024,104990.0,104980.0,4.769e-05]
[1750189416438,2.19940485,104990.0,104980.0,4.769e-05]
[1750189416673,2.21721655,104990.0,104980.0,4.769e-05]
[1750189416905,1.80878279,104990.0,104980.0,4.769e-05]
[1750189417981,1.83693109,104990.0,104980.0,4.769e-05]
[1750189418415,1.98693109,104990.0,104980.0,4.769e-05]
[1750189418620,1.82397109,104990.0,104980.0,4.769e-05]
[1750189418836,1.91753017,104990.0,104980.0,4.769e-05]
[1750189419043,1.00352726,104990.0,104980.0,4.769e-05]
[1750189419257,1.51983447,104990.0,104980.0,4.769e-05]
[1750189419722,1.55113447,104990.0,104980.0,4.769e-05]
[1750189421471,1.56567532,104990.0,104980.0,4.769e-05]
[1750189421906,1.66182454,104990.0,104980.0,4.769e-05]
[1750189422339,1.28165217,104990.0,104980.0,4.769e-05]
[1750189422551,1.31231447,104990.0,104980.0,4.769e-05]
[1750189422764,1.51979447,104990.0,104980.0,4.769e-05]
[1750189423177,1.55169447,104990.0,104980.0,4.769e-05]
[1750189424251,1.34421447,104990.0,104980.0,4.769e-05]
[1750189424463,1.51983447,104990.0,104980.0,4.769e-05]
[1750189424716,0.90388071,104990.0,104980.0,4.769e-05]
[1750189424930,1.31231447,104990.0,104980.0,0.20008578]
[1750189425152,1.51979447,104990.0,104980.0,0.20008578]
[1750189425364,0.12129028,104990.0,104980.0,0.25003639]
[1750189425573,0.33829454,104990.0,104980.0,0.29026137]
[1750189425815,0.77438263,104990.0,104980.0,0.28073639]